[Event "*** SCC Grand Prix: Titled Tuesday Blitz"]
[Site "Chess.com"]
[Date "2020.10.06"]
[Round "2"]
[White "Quiet_Desperation"]
[Black "Salem-AR"]
[Result "0-1"]
[WhiteElo "1915"]
[BlackElo "2907"]
[TimeControl "180+1"]
[EndTime "10:16:34 PDT"]
[Termination "Salem-AR won by resignation"]

1. e4 {[%clk 0:03:00.9]} 1... c5 {[%clk 0:02:58.5]} 2. Nf3 {[%clk 0:02:59.3]}
2... d6 {[%clk 0:02:59.2]} 3. d4 {[%clk 0:02:59.4]} 3... cxd4 {[%clk 0:03:00.1]}
4. Nxd4 {[%clk 0:03:00.2]} 4... Nf6 {[%clk 0:03:00.7]} 5. Nc3 {[%clk 0:03:00.6]}
5... a6 {[%clk 0:03:01.4]} 6. h3 {[%clk 0:03:01]} 6... e6 {[%clk 0:03:01.5]} 7.
Be3 {[%clk 0:02:59.6]} 7... b5 {[%clk 0:03:00.6]} 8. Bd3 {[%clk 0:02:57]} 8...
Bb7 {[%clk 0:03:00.3]} 9. a3 {[%clk 0:02:56.9]} 9... Nbd7 {[%clk 0:02:59.7]} 10.
O-O {[%clk 0:02:57.1]} 10... Rc8 {[%clk 0:03:00.4]} 11. f4 {[%clk 0:02:55.8]}
11... Be7 {[%clk 0:02:59.5]} 12. Kh1 {[%clk 0:02:56]} 12... h5 {[%clk
0:02:57.9]} 13. Nf3 {[%clk 0:02:45.9]} 13... h4 {[%clk 0:02:55]} 14. e5 {[%clk
0:02:36.5]} 14... Nh5 {[%clk 0:02:47]} 15. Kh2 {[%clk 0:02:34.8]} 15... Qc7
{[%clk 0:02:32.3]} 16. exd6 {[%clk 0:01:42.8]} 16... Bxd6 {[%clk 0:02:33.2]} 17.
Ne2 {[%clk 0:01:42.5]} 17... Ndf6 {[%clk 0:02:16.3]} 18. Rc1 {[%clk 0:01:29.4]}
18... Nd5 {[%clk 0:02:13.5]} 19. Bd2 {[%clk 0:01:28.3]} 19... Ndxf4 {[%clk
0:02:10.9]} 20. Nxf4 {[%clk 0:01:28]} 20... Bxf4+ {[%clk 0:02:10]} 21. Bxf4
{[%clk 0:01:22.6]} 21... Qxf4+ {[%clk 0:02:10.9]} 22. Kg1 {[%clk 0:01:22.3]}
22... Qe3+ {[%clk 0:02:09.3]} 23. Kh2 {[%clk 0:01:22.3]} 23... Qf4+ {[%clk
0:02:04]} 24. Kg1 {[%clk 0:01:21.7]} 24... Ng3 {[%clk 0:02:01]} 25. Rf2 {[%clk
0:01:17.9]} 25... Rd8 {[%clk 0:01:50.6]} 26. Qe1 {[%clk 0:01:17.9]} 26... Bxf3
{[%clk 0:01:35.9]} 27. Rxf3 {[%clk 0:01:15]} 27... Qd4+ {[%clk 0:01:36.3]} 28.
Kh2 {[%clk 0:01:14.3]} 28... Qxb2 {[%clk 0:01:30.8]} 29. a4 {[%clk 0:01:03.7]}
29... bxa4 {[%clk 0:01:20.1]} 30. Bxa6 {[%clk 0:00:55.7]} 30... Qb8 {[%clk
0:01:16.6]} 31. Rxg3 {[%clk 0:00:47]} 31... hxg3+ {[%clk 0:01:15.5]} 32. Kh1
{[%clk 0:00:45.6]} 32... Kf8 {[%clk 0:00:49.2]} 33. Bd3 {[%clk 0:00:45.1]} 33...
Qd6 {[%clk 0:00:44.7]} 34. Qf1 {[%clk 0:00:43.9]} 34... a3 {[%clk 0:00:42.3]}
0-1

[Event "*** SCC Grand Prix: Titled Tuesday Blitz"]
[Site "Chess.com"]
[Date "2020.10.06"]
[Round "2"]
[White "AleksanderHnydiuk"]
[Black "eljanov"]
[Result "0-1"]
[WhiteElo "2557"]
[BlackElo "2830"]
[TimeControl "180+1"]
[EndTime "10:16:38 PDT"]
[Termination "eljanov won on time"]

1. d4 {[%clk 0:03:00.9]} 1... Nf6 {[%clk 0:02:59.6]} 2. c4 {[%clk 0:03:00.2]}
2... e6 {[%clk 0:02:59.9]} 3. g3 {[%clk 0:02:59.9]} 3... Bb4+ {[%clk 0:02:57.9]}
4. Bd2 {[%clk 0:02:58.5]} 4... Be7 {[%clk 0:02:57.8]} 5. Bg2 {[%clk 0:02:57.7]}
5... d5 {[%clk 0:02:58.1]} 6. Nf3 {[%clk 0:02:57.5]} 6... O-O {[%clk 0:02:58.3]}
7. O-O {[%clk 0:02:57.5]} 7... c6 {[%clk 0:02:58.5]} 8. Qc2 {[%clk 0:02:57.4]}
8... Nbd7 {[%clk 0:02:58]} 9. Bf4 {[%clk 0:02:57.3]} 9... b6 {[%clk 0:02:57.7]}
10. Rd1 {[%clk 0:02:52.1]} 10... a5 {[%clk 0:02:53.2]} 11. Nbd2 {[%clk
0:02:41.3]} 11... Nh5 {[%clk 0:02:49.6]} 12. Be3 {[%clk 0:02:40.5]} 12... Bb7
{[%clk 0:02:47.9]} 13. Ne5 {[%clk 0:02:34.6]} 13... Rc8 {[%clk 0:02:45.1]} 14.
Rac1 {[%clk 0:02:11.2]} 14... f5 {[%clk 0:02:26]} 15. Qb3 {[%clk 0:01:37.8]}
15... Nhf6 {[%clk 0:02:23.9]} 16. Bg5 {[%clk 0:01:33]} 16... Nxe5 {[%clk
0:02:13.8]} 17. dxe5 {[%clk 0:01:32.6]} 17... Nd7 {[%clk 0:02:14.1]} 18. Bxe7
{[%clk 0:01:31.2]} 18... Qxe7 {[%clk 0:02:15]} 19. cxd5 {[%clk 0:01:08]} 19...
cxd5 {[%clk 0:02:15]} 20. f4 {[%clk 0:01:03.2]} 20... Ba6 {[%clk 0:02:13.5]} 21.
Qe3 {[%clk 0:00:56.8]} 21... Qb4 {[%clk 0:02:03.2]} 22. Nb3 {[%clk 0:00:53]}
22... Rxc1 {[%clk 0:01:39.8]} 23. Rxc1 {[%clk 0:00:51.7]} 23... Rc8 {[%clk
0:01:40.3]} 24. Rxc8+ {[%clk 0:00:40]} 24... Bxc8 {[%clk 0:01:41.2]} 25. Kf2
{[%clk 0:00:29.2]} 25... Nc5 {[%clk 0:01:40.2]} 26. Nxc5 {[%clk 0:00:14.6]}
26... bxc5 {[%clk 0:01:39.6]} 27. b3 {[%clk 0:00:13.2]} 27... h6 {[%clk
0:01:33]} 28. h3 {[%clk 0:00:06.9]} 28... a4 {[%clk 0:01:33.3]} 29. g4 {[%clk
0:00:06.6]} 29... fxg4 {[%clk 0:01:14.1]} 30. hxg4 {[%clk 0:00:06]} 30... axb3
{[%clk 0:01:14.4]} 31. axb3 {[%clk 0:00:05.6]} 31... c4 {[%clk 0:01:14.7]} 32.
bxc4 {[%clk 0:00:04.3]} 32... dxc4 {[%clk 0:01:15.6]} 33. f5 {[%clk 0:00:02.8]}
33... c3 {[%clk 0:01:14.2]} 0-1

[Event "*** SCC Grand Prix: Titled Tuesday Blitz"]
[Site "Chess.com"]
[Date "2020.10.06"]
[Round "2"]
[White "Fh2411"]
[Black "Bulldog167"]
[Result "0-1"]
[WhiteElo "2532"]
[BlackElo "2792"]
[TimeControl "180+1"]
[EndTime "10:16:40 PDT"]
[Termination "Bulldog167 won by resignation"]

1. d4 {[%clk 0:03:00.9]} 1... Nf6 {[%clk 0:03:00.3]} 2. Nf3 {[%clk 0:02:58.8]}
2... e6 {[%clk 0:03:00.4]} 3. Bf4 {[%clk 0:02:58.2]} 3... b6 {[%clk 0:03:00.4]}
4. e3 {[%clk 0:02:57.5]} 4... Bb7 {[%clk 0:03:00.9]} 5. Nbd2 {[%clk 0:02:56.2]}
5... Be7 {[%clk 0:03:00.7]} 6. h3 {[%clk 0:02:56.5]} 6... O-O {[%clk 0:03:00.1]}
7. Bd3 {[%clk 0:02:57]} 7... c5 {[%clk 0:03:00.5]} 8. c3 {[%clk 0:02:56]} 8...
cxd4 {[%clk 0:03:01]} 9. exd4 {[%clk 0:02:54.9]} 9... d6 {[%clk 0:03:01.3]} 10.
O-O {[%clk 0:02:52.6]} 10... Nbd7 {[%clk 0:03:01.1]} 11. Re1 {[%clk 0:02:52.4]}
11... Re8 {[%clk 0:03:01.3]} 12. a4 {[%clk 0:02:50]} 12... a6 {[%clk 0:03:00.8]}
13. Qe2 {[%clk 0:02:47]} 13... Bf8 {[%clk 0:03:00.9]} 14. Ng5 {[%clk 0:02:32.6]}
14... h6 {[%clk 0:02:54.8]} 15. Nge4 {[%clk 0:02:31.1]} 15... Qc7 {[%clk
0:02:47.7]} 16. Bg3 {[%clk 0:02:24.4]} 16... Qc6 {[%clk 0:02:46.4]} 17. f3
{[%clk 0:02:10.4]} 17... e5 {[%clk 0:02:31]} 18. dxe5 {[%clk 0:02:03.2]} 18...
dxe5 {[%clk 0:02:20.4]} 19. Kh1 {[%clk 0:01:46.4]} 19... Nh5 {[%clk 0:02:03.6]}
20. Bh2 {[%clk 0:01:43.8]} 20... Nf4 {[%clk 0:02:01.2]} 21. Qf1 {[%clk
0:01:42.5]} 21... Nxd3 {[%clk 0:02:00.3]} 22. Qxd3 {[%clk 0:01:42.4]} 22... Rad8
{[%clk 0:01:58.4]} 23. Qc4 {[%clk 0:01:38.9]} 23... Nc5 {[%clk 0:01:44.7]} 24.
Nxc5 {[%clk 0:01:33.5]} 24... Rxd2 {[%clk 0:01:44.9]} 25. Bf4 {[%clk 0:00:58.2]}
25... Rdd8 {[%clk 0:01:13.4]} 26. Bxe5 {[%clk 0:00:48.7]} 26... Qxc5 {[%clk
0:01:12.2]} 27. Qf4 {[%clk 0:00:45.8]} 27... Qc6 {[%clk 0:00:59.7]} 28. Bd4
{[%clk 0:00:43.5]} 28... Rxe1+ {[%clk 0:00:59.6]} 29. Rxe1 {[%clk 0:00:42.7]}
29... b5 {[%clk 0:00:54]} 30. axb5 {[%clk 0:00:42]} 30... axb5 {[%clk
0:00:54.9]} 31. Re5 {[%clk 0:00:38.3]} 31... Re8 {[%clk 0:00:53.5]} 32. Rf5
{[%clk 0:00:30.7]} 32... Re1+ {[%clk 0:00:53.3]} 33. Kh2 {[%clk 0:00:30.4]}
33... Bd6 {[%clk 0:00:53.5]} 34. Be5 {[%clk 0:00:27.9]} 34... Rxe5 {[%clk
0:00:53.4]} 35. Rxe5 {[%clk 0:00:28.8]} 35... f6 {[%clk 0:00:50.9]} 0-1

[Event "*** SCC Grand Prix: Titled Tuesday Blitz"]
[Site "Chess.com"]
[Date "2020.10.06"]
[Round "2"]
[White "tlomigtlis"]
[Black "Alexander_Donchenko"]
[Result "0-1"]
[WhiteElo "2513"]
[BlackElo "2763"]
[TimeControl "180+1"]
[EndTime "10:16:41 PDT"]
[Termination "Alexander_Donchenko won by checkmate"]

1. d4 {[%clk 0:03:00.9]} 1... Nf6 {[%clk 0:02:59.2]} 2. c4 {[%clk 0:03:00.6]}
2... e6 {[%clk 0:02:59]} 3. Nc3 {[%clk 0:03:00.4]} 3... Bb4 {[%clk 0:02:58.1]}
4. Qc2 {[%clk 0:03:00.1]} 4... c5 {[%clk 0:02:58]} 5. dxc5 {[%clk 0:02:58.9]}
5... O-O {[%clk 0:02:58.1]} 6. Nf3 {[%clk 0:02:57.1]} 6... Bxc5 {[%clk
0:02:56.3]} 7. Bg5 {[%clk 0:02:55.2]} 7... h6 {[%clk 0:02:54.5]} 8. Bh4 {[%clk
0:02:54.8]} 8... d6 {[%clk 0:02:47.9]} 9. e3 {[%clk 0:02:53.8]} 9... Nbd7 {[%clk
0:02:45.9]} 10. Bd3 {[%clk 0:02:53.3]} 10... a6 {[%clk 0:02:43.9]} 11. a3 {[%clk
0:02:51]} 11... Qc7 {[%clk 0:02:43.6]} 12. O-O {[%clk 0:02:48.6]} 12... Ba7
{[%clk 0:02:37.9]} 13. Ne4 {[%clk 0:02:46.1]} 13... Nxe4 {[%clk 0:02:36.3]} 14.
Bxe4 {[%clk 0:02:47]} 14... Nc5 {[%clk 0:02:35.3]} 15. Bh7+ {[%clk 0:02:42.2]}
15... Kh8 {[%clk 0:02:35.2]} 16. b4 {[%clk 0:02:42.7]} 16... Nd7 {[%clk
0:02:17]} 17. Be4 {[%clk 0:02:37.6]} 17... Nf6 {[%clk 0:02:08.1]} 18. Bxf6
{[%clk 0:02:28]} 18... gxf6 {[%clk 0:02:09]} 19. Rad1 {[%clk 0:02:18.2]} 19...
f5 {[%clk 0:02:05.9]} 20. Bd3 {[%clk 0:02:16.9]} 20... Bd7 {[%clk 0:02:04.3]}
21. e4 {[%clk 0:02:13.1]} 21... Bc6 {[%clk 0:01:56.4]} 22. exf5 {[%clk
0:01:56.4]} 22... Bxf3 {[%clk 0:01:52.3]} 23. gxf3 {[%clk 0:01:57.3]} 23... Rg8+
{[%clk 0:01:44.4]} 24. Kh1 {[%clk 0:01:57]} 24... e5 {[%clk 0:01:35]} 25. Be4
{[%clk 0:01:52.1]} 25... Qe7 {[%clk 0:01:34.2]} 26. Qd2 {[%clk 0:01:46.3]} 26...
Qh4 {[%clk 0:01:27.8]} 27. Rg1 {[%clk 0:01:28.1]} 27... Bxf2 {[%clk 0:01:17]}
28. Rxg8+ {[%clk 0:01:17.4]} 28... Rxg8 {[%clk 0:01:17.9]} 29. Qxd6 {[%clk
0:01:16.7]} 29... Qg5 {[%clk 0:01:06.6]} 30. Qxe5+ {[%clk 0:00:33.6]} 30... f6
{[%clk 0:01:06]} 31. Qg3 {[%clk 0:00:32.9]} 31... Bxg3 {[%clk 0:01:05.3]} 32.
Rg1 {[%clk 0:00:31.6]} 32... Qh4 {[%clk 0:01:04.3]} 33. Rg2 {[%clk 0:00:31.7]}
33... Bxh2 {[%clk 0:01:02.9]} 34. Rxg8+ {[%clk 0:00:32.6]} 34... Kxg8 {[%clk
0:01:02.8]} 35. Kg2 {[%clk 0:00:33.5]} 35... Qg3+ {[%clk 0:01:02]} 36. Kf1
{[%clk 0:00:34.4]} 36... Bg1 {[%clk 0:01:02.1]} 37. Ke2 {[%clk 0:00:35.3]} 37...
h5 {[%clk 0:00:58.1]} 38. Kd3 {[%clk 0:00:36.2]} 38... h4 {[%clk 0:00:58.2]} 39.
Kc2 {[%clk 0:00:37]} 39... h3 {[%clk 0:00:58.5]} 40. Kb3 {[%clk 0:00:37.9]}
40... h2 {[%clk 0:00:59.1]} 41. Ka4 {[%clk 0:00:38.8]} 41... h1=Q {[%clk
0:00:59.4]} 42. Bxb7 {[%clk 0:00:39.7]} 42... Qhh4 {[%clk 0:00:58.7]} 43. Bd5+
{[%clk 0:00:40.6]} 43... Kf8 {[%clk 0:00:58.3]} 44. Ka5 {[%clk 0:00:41.5]} 44...
Qd4 {[%clk 0:00:57.8]} 45. Be6 {[%clk 0:00:39.6]} 45... Qb6+ {[%clk 0:00:57.3]}
46. Ka4 {[%clk 0:00:40.5]} 46... Qxf3 {[%clk 0:00:57.7]} 47. c5 {[%clk
0:00:40.8]} 47... Qb5# {[%clk 0:00:57.5]} 0-1

[Event "*** SCC Grand Prix: Titled Tuesday Blitz"]
[Site "Chess.com"]
[Date "2020.10.06"]
[Round "2"]
[White "profofchess"]
[Black "Rogarcia1"]
[Result "1-0"]
[WhiteElo "2395"]
[BlackElo "2122"]
[TimeControl "180+1"]
[EndTime "10:16:42 PDT"]
[Termination "profofchess won on time"]

1. e4 {[%clk 0:03:00.9]} 1... c5 {[%clk 0:02:59.6]} 2. Nf3 {[%clk 0:03:00.3]}
2... Nc6 {[%clk 0:02:59.6]} 3. Bb5 {[%clk 0:02:59.7]} 3... g6 {[%clk 0:02:57.7]}
4. O-O {[%clk 0:02:58.4]} 4... Bg7 {[%clk 0:02:57.2]} 5. Re1 {[%clk 0:02:59.1]}
5... e5 {[%clk 0:02:43.1]} 6. Bxc6 {[%clk 0:02:58]} 6... dxc6 {[%clk 0:02:42.9]}
7. d3 {[%clk 0:02:54.9]} 7... Qc7 {[%clk 0:02:21.3]} 8. a4 {[%clk 0:02:54.6]}
8... a5 {[%clk 0:02:18.6]} 9. Nbd2 {[%clk 0:02:52.7]} 9... f6 {[%clk 0:02:05.2]}
10. Nc4 {[%clk 0:02:51.4]} 10... Nh6 {[%clk 0:02:00.5]} 11. Be3 {[%clk
0:02:25.5]} 11... b6 {[%clk 0:02:00.1]} 12. b4 {[%clk 0:02:25.2]} 12... axb4
{[%clk 0:01:06.3]} 13. a5 {[%clk 0:02:24.9]} 13... b5 {[%clk 0:00:41.3]} 14. Nb6
{[%clk 0:02:23.7]} 14... Rb8 {[%clk 0:00:35.4]} 15. Bxc5 {[%clk 0:02:22.2]}
15... Bf8 {[%clk 0:00:31.4]} 16. Bxf8 {[%clk 0:02:08.5]} 16... Kxf8 {[%clk
0:00:31.4]} 17. Qd2 {[%clk 0:02:09.2]} 17... Kg7 {[%clk 0:00:30.7]} 18. Qxb4
{[%clk 0:02:08.1]} 18... Bg4 {[%clk 0:00:28]} 19. Nd2 {[%clk 0:02:04.4]} 19...
f5 {[%clk 0:00:20.6]} 20. exf5 {[%clk 0:02:01.8]} 20... gxf5 {[%clk 0:00:20.8]}
21. f4 {[%clk 0:01:43.8]} 21... Rhe8 {[%clk 0:00:19.8]} 22. fxe5 {[%clk
0:01:17.7]} 22... Rxe5 {[%clk 0:00:20.7]} 23. Qc3 {[%clk 0:01:17.8]} 23... Re8
{[%clk 0:00:17.4]} 24. Nd7 {[%clk 0:01:17.9]} 24... b4 {[%clk 0:00:05.4]} 25.
Qb2 {[%clk 0:01:17.2]} 25... Qa7+ {[%clk 0:00:05.3]} 26. Kh1 {[%clk 0:01:15.2]}
26... Qf2 {[%clk 0:00:05.9]} 27. Nxe5 {[%clk 0:01:07.2]} 27... Kf8 {[%clk
0:00:05.5]} 28. Nd7+ {[%clk 0:00:55.2]} 1-0

[Event "*** SCC Grand Prix: Titled Tuesday Blitz"]
[Site "Chess.com"]
[Date "2020.10.06"]
[Round "2"]
[White "HrvojeZagreb"]
[Black "Fy_Rakotomaharo"]
[Result "0-1"]
[WhiteElo "2118"]
[BlackElo "2626"]
[TimeControl "180+1"]
[EndTime "10:16:43 PDT"]
[Termination "Fy_Rakotomaharo won by resignation"]

1. d4 {[%clk 0:03:00.9]} 1... Nf6 {[%clk 0:02:59.7]} 2. Bf4 {[%clk 0:03:00.1]}
2... g6 {[%clk 0:02:54.5]} 3. Nc3 {[%clk 0:02:59.6]} 3... d5 {[%clk 0:02:54.3]}
4. e3 {[%clk 0:02:59.7]} 4... Bg7 {[%clk 0:02:54.4]} 5. h4 {[%clk 0:02:59.6]}
5... c6 {[%clk 0:02:55]} 6. Qd2 {[%clk 0:02:45.9]} 6... Nbd7 {[%clk 0:02:50.1]}
7. Nf3 {[%clk 0:02:34.3]} 7... b5 {[%clk 0:02:17.7]} 8. a3 {[%clk 0:02:29.2]}
8... a5 {[%clk 0:02:15.5]} 9. Ne5 {[%clk 0:02:25.8]} 9... Nxe5 {[%clk
0:02:12.5]} 10. Bxe5 {[%clk 0:02:19.7]} 10... h5 {[%clk 0:02:12.2]} 11. f3
{[%clk 0:02:00.5]} 11... O-O {[%clk 0:02:08.5]} 12. Bd3 {[%clk 0:01:25.4]} 12...
Ba6 {[%clk 0:01:52.3]} 13. g4 {[%clk 0:01:05.6]} 13... b4 {[%clk 0:01:47.8]} 14.
axb4 {[%clk 0:00:38]} 14... Bxd3 {[%clk 0:01:46.1]} 15. cxd3 {[%clk 0:00:16.7]}
15... axb4 {[%clk 0:01:47]} 16. Rxa8 {[%clk 0:00:15.8]} 16... bxc3 {[%clk
0:01:43.3]} 17. Rxd8 {[%clk 0:00:15.2]} 17... cxd2+ {[%clk 0:01:43.6]} 18. Kxd2
{[%clk 0:00:16.1]} 18... Rxd8 {[%clk 0:01:43.9]} 19. gxh5 {[%clk 0:00:14]} 19...
Nxh5 {[%clk 0:01:41.5]} 20. Rc1 {[%clk 0:00:13.7]} 20... Bxe5 {[%clk 0:01:33.3]}
21. dxe5 {[%clk 0:00:14.6]} 21... Rb8 {[%clk 0:01:33.9]} 22. Rxc6 {[%clk
0:00:11.4]} 22... Rxb2+ {[%clk 0:01:33.3]} 23. Kc3 {[%clk 0:00:11.6]} 23... Rh2
{[%clk 0:01:26.2]} 24. e6 {[%clk 0:00:11.6]} 24... Rxh4 {[%clk 0:01:16.7]} 25.
Rc8+ {[%clk 0:00:07]} 25... Kg7 {[%clk 0:01:16.8]} 26. Re8 {[%clk 0:00:06.9]}
26... fxe6 {[%clk 0:01:15.2]} 27. Rxe7+ {[%clk 0:00:05.9]} 27... Kf6 {[%clk
0:01:15.7]} 28. Rh7 {[%clk 0:00:04.7]} 28... d4+ {[%clk 0:01:06.7]} 29. exd4
{[%clk 0:00:03.5]} 29... Rh3 {[%clk 0:01:07.2]} 30. f4 {[%clk 0:00:03.3]} 30...
Nxf4 {[%clk 0:01:06.5]} 31. Ra7 {[%clk 0:00:04.2]} 0-1

[Event "*** SCC Grand Prix: Titled Tuesday Blitz"]
[Site "Chess.com"]
[Date "2020.10.06"]
[Round "2"]
[White "bratkoo"]
[Black "Oleksandr_Bortnyk"]
[Result "0-1"]
[WhiteElo "2573"]
[BlackElo "2897"]
[TimeControl "180+1"]
[EndTime "10:16:44 PDT"]
[Termination "Oleksandr_Bortnyk won by checkmate"]

1. e4 {[%clk 0:03:00.9]} 1... Nf6 {[%clk 0:02:57.9]} 2. e5 {[%clk 0:02:52.9]}
2... Nd5 {[%clk 0:02:57.6]} 3. d4 {[%clk 0:02:53.8]} 3... d6 {[%clk 0:02:57.8]}
4. Nf3 {[%clk 0:02:54.5]} 4... dxe5 {[%clk 0:02:58.1]} 5. Nxe5 {[%clk
0:02:53.9]} 5... c6 {[%clk 0:02:58.2]} 6. Be2 {[%clk 0:02:50.6]} 6... Bf5 {[%clk
0:02:58.1]} 7. O-O {[%clk 0:02:50.5]} 7... Nd7 {[%clk 0:02:58.2]} 8. Nf3 {[%clk
0:02:45.1]} 8... e6 {[%clk 0:02:58.7]} 9. c4 {[%clk 0:02:44.4]} 9... N5f6 {[%clk
0:02:58.9]} 10. Nc3 {[%clk 0:02:44.7]} 10... Bd6 {[%clk 0:02:59]} 11. Nh4 {[%clk
0:02:43.1]} 11... Bg6 {[%clk 0:02:59.2]} 12. Nxg6 {[%clk 0:02:34.2]} 12... hxg6
{[%clk 0:03:00.1]} 13. h3 {[%clk 0:02:35]} 13... Qc7 {[%clk 0:02:55.6]} 14. d5
{[%clk 0:02:30.3]} 14... e5 {[%clk 0:02:49.5]} 15. dxc6 {[%clk 0:02:26.4]} 15...
bxc6 {[%clk 0:02:50.4]} 16. Bf3 {[%clk 0:02:24.2]} 16... O-O {[%clk 0:02:34.7]}
17. Be3 {[%clk 0:02:22.6]} 17... Bc5 {[%clk 0:02:28.2]} 18. Qe2 {[%clk
0:02:17.8]} 18... Rfe8 {[%clk 0:02:23.6]} 19. Bxc5 {[%clk 0:02:06.2]} 19... Nxc5
{[%clk 0:02:24.5]} 20. b4 {[%clk 0:02:06.5]} 20... Ne6 {[%clk 0:02:21.4]} 21.
Qe3 {[%clk 0:01:43.3]} 21... Nd4 {[%clk 0:02:18.1]} 22. Rac1 {[%clk 0:01:43.8]}
22... Rab8 {[%clk 0:02:12]} 23. b5 {[%clk 0:01:28.4]} 23... cxb5 {[%clk
0:02:12.9]} 24. Nxb5 {[%clk 0:01:27.5]} 24... Qc5 {[%clk 0:02:06]} 25. Rfd1
{[%clk 0:01:06.5]} 25... a6 {[%clk 0:01:58.4]} 26. Nxd4 {[%clk 0:00:58.3]} 26...
exd4 {[%clk 0:01:59.3]} 27. Qf4 {[%clk 0:00:58.7]} 27... g5 {[%clk 0:01:52.1]}
28. Qd2 {[%clk 0:00:54]} 28... Rbd8 {[%clk 0:01:47.5]} 29. Bd5 {[%clk
0:00:48.4]} 29... Nxd5 {[%clk 0:01:46.3]} 30. Qxg5 {[%clk 0:00:48.3]} 30... Qe7
{[%clk 0:01:22.1]} 31. Qxe7 {[%clk 0:00:29.4]} 31... Nxe7 {[%clk 0:01:23]} 32.
Rb1 {[%clk 0:00:30]} 32... Nc6 {[%clk 0:01:11.4]} 33. Rb6 {[%clk 0:00:29.3]}
33... Ne5 {[%clk 0:01:12]} 34. c5 {[%clk 0:00:26.7]} 34... d3 {[%clk 0:01:12.4]}
35. Rxa6 {[%clk 0:00:26.4]} 35... d2 {[%clk 0:01:11.2]} 36. Rd6 {[%clk
0:00:19.1]} 36... Rxd6 {[%clk 0:01:06.5]} 37. cxd6 {[%clk 0:00:20]} 37... Nf3+
{[%clk 0:01:01.5]} 38. Kf1 {[%clk 0:00:20.9]} 38... Re1+ {[%clk 0:01:01.9]} 39.
Rxe1 {[%clk 0:00:15.9]} 39... dxe1=Q# {[%clk 0:01:02.8]} 0-1

[Event "*** SCC Grand Prix: Titled Tuesday Blitz"]
[Site "Chess.com"]
[Date "2020.10.06"]
[Round "2"]
[White "reutik"]
[Black "Fighter008"]
[Result "1-0"]
[WhiteElo "2197"]
[BlackElo "2619"]
[TimeControl "180+1"]
[EndTime "10:16:50 PDT"]
[Termination "reutik won by resignation"]

1. d4 {[%clk 0:03:00.9]} 1... Nf6 {[%clk 0:02:55.3]} 2. Nf3 {[%clk 0:03:00.9]}
2... g6 {[%clk 0:02:54.4]} 3. c4 {[%clk 0:03:00.7]} 3... Bg7 {[%clk 0:02:54.5]}
4. e3 {[%clk 0:03:00.9]} 4... O-O {[%clk 0:02:54.3]} 5. Be2 {[%clk 0:03:01]}
5... d6 {[%clk 0:02:54.4]} 6. Nc3 {[%clk 0:03:00]} 6... Nbd7 {[%clk 0:02:47.4]}
7. b3 {[%clk 0:02:57.2]} 7... e5 {[%clk 0:02:47.3]} 8. Bb2 {[%clk 0:02:57.6]}
8... Nh5 {[%clk 0:02:47.2]} 9. O-O {[%clk 0:02:52.5]} 9... f5 {[%clk 0:02:47.2]}
10. dxe5 {[%clk 0:02:39.8]} 10... dxe5 {[%clk 0:02:47]} 11. Qc2 {[%clk
0:02:33.7]} 11... c6 {[%clk 0:02:45.5]} 12. Rfd1 {[%clk 0:02:33.1]} 12... Qe7
{[%clk 0:02:45.5]} 13. Qd2 {[%clk 0:02:26.6]} 13... e4 {[%clk 0:02:42.1]} 14.
Ne1 {[%clk 0:02:23]} 14... Nhf6 {[%clk 0:02:38.9]} 15. Qd6 {[%clk 0:02:21.1]}
15... Qxd6 {[%clk 0:02:33.5]} 16. Rxd6 {[%clk 0:02:20.5]} 16... Ne8 {[%clk
0:02:34.4]} 17. Rd2 {[%clk 0:02:19.1]} 17... Nc7 {[%clk 0:02:34.6]} 18. Nd1
{[%clk 0:02:12.9]} 18... Bxb2 {[%clk 0:02:33.1]} 19. Nxb2 {[%clk 0:02:12.5]}
19... Ne5 {[%clk 0:02:30.8]} 20. Rad1 {[%clk 0:02:11]} 20... Ne6 {[%clk
0:02:28.9]} 21. Nc2 {[%clk 0:02:09.6]} 21... Nc5 {[%clk 0:02:22.2]} 22. Nd4
{[%clk 0:02:07.5]} 22... a5 {[%clk 0:02:16]} 23. a3 {[%clk 0:02:02.4]} 23... g5
{[%clk 0:02:13.8]} 24. b4 {[%clk 0:01:56.3]} 24... Ne6 {[%clk 0:02:00]} 25. c5
{[%clk 0:01:50.9]} 25... Nxd4 {[%clk 0:01:54.6]} 26. exd4 {[%clk 0:01:46.1]}
26... Ng6 {[%clk 0:01:53.4]} 27. Bc4+ {[%clk 0:01:43.1]} 27... Kh8 {[%clk
0:01:51]} 28. d5 {[%clk 0:01:43.3]} 28... cxd5 {[%clk 0:01:49.7]} 29. Rxd5
{[%clk 0:01:43.3]} 29... axb4 {[%clk 0:01:47.6]} 30. axb4 {[%clk 0:01:42.7]}
30... Be6 {[%clk 0:01:46.9]} 31. Rd6 {[%clk 0:01:39.5]} 31... Bxc4 {[%clk
0:01:45.1]} 32. Nxc4 {[%clk 0:01:39.8]} 32... Ra4 {[%clk 0:01:42.5]} 33. Rb6
{[%clk 0:01:39.5]} 33... Nf4 {[%clk 0:01:11.4]} 34. Rxb7 {[%clk 0:01:22.8]}
34... Nd3 {[%clk 0:01:11.1]} 35. Nd6 {[%clk 0:01:16.2]} 35... Nxb4 {[%clk
0:00:53.3]} 36. Nf7+ {[%clk 0:01:15.9]} 36... Kg8 {[%clk 0:00:51.5]} 37. Nxg5
{[%clk 0:01:15.9]} 37... Nd3 {[%clk 0:00:50.7]} 38. c6 {[%clk 0:01:14.6]} 38...
Rc4 {[%clk 0:00:33]} 39. Nxh7 {[%clk 0:01:05.7]} 39... Rxc6 {[%clk 0:00:32.3]}
40. Nxf8 {[%clk 0:01:05.1]} 40... Kxf8 {[%clk 0:00:32]} 41. Ra1 {[%clk
0:00:59.9]} 41... Rc2 {[%clk 0:00:30.8]} 42. Ra8+ {[%clk 0:00:58.6]} 1-0